[Event "20th Delhi GM Open 2023"]
[Site "New Delhi"]
[Date "2023.03.30"]
[Round "10.4"]
[White "Madaminov, Mukhiddin"]
[Black "Sethuraman, S.P."]
[Result "0-1"]
[ECO "A45"]
[WhiteElo "2436"]
[BlackElo "2639"]
[Annotator "TA"]
[PlyCount "94"]
[EventDate "2023.03.23"]
[EventType "swiss"]
[EventCountry "IND"]
[SourceTitle "playchess.com"]
[Source "ChessBase"]
[SourceQuality "1"]
[TimeControl "5400+30"]

{[%evp 9,94,0,0,-13,0,0,0,0,0,0,27,0,0,0,0,-7,0,0,0,-14,41,0,0,-7,-22,-41,-31,-22,-17,-150,-152,-156,-153,-333,-341,-307,-324,-315,-300,-300,-300,-300,-286,-286,-256,-457,-445,-470,-460,-458,-449,-452,-452,-537,-530,-604,-604,-588,-581,-581,-568,-745,-739,-1421,-1375,-1335,-1290,-4134,-4134,-29972,-29973,-29985,-29986,-29986,-29987,-29987,-29985,-29985,-29970,-29983,-29978,-29977,-5069,-29989,-29989,-29995,-29988]} 1. d4 {[%emt 0:00:19]} Nf6 {[%emt 0:00:11]} 2. Nc3 {[%emt 0:00:05]} e6 {[%emt 0:01:36]} 3. Bf4 {[%emt 0:00:06]} Bb4 {[%emt 0:01:22]} 4. e3 {[%emt 0:00:06]} c5 {[%emt 0:17:20]} 5. Nge2 {[%emt 0:11:54]} cxd4 {[%emt 0:19:10]} 6. exd4 {[%emt 0:00:16] A45: Trompowsky Attack.} d5 {[%emt 0:00:17]} 7. a3 {[%emt 0:00:26] [#]} Ba5 $146 {[%emt 0:02:25]} ({Predecessor:} 7... Bd6 8. Qd2 Nc6 9. Bxd6 Qxd6 10. g4 a6 11. h4 e5 12. g5 Ne4 13. Nxe4 dxe4 {1-0 Shaw,D-Tillotson,J ICCF FM/3473 email 2020}) 8. Qd3 {[%emt 0:02:28] The position is equal.} O-O {[%emt 0:03:05]} 9. O-O-O {[%emt 0:02:38]} Nbd7 {[%emt 0:10:32]} 10. Rg1 {[%emt 0:01:38]} b5 {[%emt 0:01:39]} 11. Qxb5 {[%emt 0:18:34]} Bc7 {[%emt 0:02:24]} 12. Qc6 {[%emt 0:02:16]} Bxf4+ {[%emt 0:00:41]} 13. Nxf4 {[%emt 0:00:02]} Rb8 {[%emt 0:00:06]} 14. g3 {[%emt 0:03:11]} Nb6 {[%emt 0:07:11]} (14... Bb7 $11 15. Qa4 Qc7) 15. Bd3 {[%emt 0:14:11]} Bb7 {[%emt 0:03:21]} 16. Qc5 {[%emt 0:02:55]} Nbd7 {[%emt 0:00:43]} 17. Qxa7 {[%emt 0:09:05]} Bc6 $1 {[%emt 0:06:48] Repels Qa4. ...Ra8 is the strong threat.} 18. Qa6 {[%emt 0:00:09]} Qc7 {[%emt 0:04:30]} 19. Nb5 {[%emt 0:08:18]} (19. Bf1 $1 $11) 19... Bxb5 $17 {[%emt 0:02:33]} 20. Bxb5 {[%emt 0:00:06]} Rfc8 $36 {[%emt 0:02:40][%csl Gc8][%cal Rc7c2][%mdl 2048] Black is in control.} 21. c3 {[%emt 0:13:27] This move loses the game for White.} (21. Bd3 $17 {was worth a try.}) 21... Ra8 $19 {[%emt 0:03:19]} 22. Nxe6 {[%emt 0:01:08]} Qb8 {[%emt 0:00:14]} 23. Qxa8 {[%emt 0:01:32]} Qxa8 {[%emt 0:00:08]} 24. Bxd7 {[%emt 0:00:03]} Nxd7 {[%emt 0:00:21][%cal Bf6d7,Bd7b6,Bb6c4][%mdl 32]} 25. Nc5 {[%emt 0:00:06]} Nb6 {[%emt 0:01:28]} 26. Rge1 {[%emt 0:00:29]} Nc4 {[%emt 0:00:33]} 27. a4 $2 {[%emt 0:01:30] [#]} (27. Re2) 27... Rxc5 $1 {[%emt 0:05:27][%mdl 576] Remove Defender} 28. dxc5 {[%emt 0:00:06]} Qxa4 {[%emt 0:00:03]} 29. Rxd5 {[%emt 0:04:42] Threatening mate with Rd8+.} h6 {[%emt 0:00:08] ...Qa1+ would be deadly.} ({And not} 29... Qa1+ 30. Kc2 Qa4+ 31. Kb1 $19) 30. Rd8+ {[%emt 0:00:31]} Kh7 {[%emt 0:00:05] Strongly threatening ...Qa1+.} 31. Kb1 {[%emt 0:00:11] Against Qa1+} Qb5 {[%emt 0:02:53][%csl Gc4,LRb2,LRc5][%cal Rb5b2]} 32. Re2 {[%emt 0:00:20]} Na3+ {[%emt 0:00:47][%mdl 64] [#] Discovered Attack} 33. Ka2 {[%emt 0:00:05]} Qxe2 {[%emt 0:00:04]} 34. Kxa3 {[%emt 0:00:04]} Qxf2 {[%emt 0:02:19][%mdl 4096] Endgame KQ-KR} 35. Rd4 {[%emt 0:02:29]} Qxh2 {[%emt 0:00:22]} 36. b4 {[%emt 0:00:10]} Qxg3 {[%emt 0:00:04]} 37. Kb3 {[%emt 0:01:30]} h5 {[%emt 0:00:59]} 38. b5 {[%emt 0:00:34]} h4 {[%emt 0:00:27] ( -> ...h3)} 39. b6 {[%emt 0:01:36]} h3 {[%emt 0:00:04]} 40. c6 {[%emt 0:00:37]} h2 {[%emt 0:00:06]} 41. c7 {[%emt 0:00:34]} h1=Q {[%emt 0:00:30]} (41... h1=B $2 42. c8=Q Qf3 43. Qd8 $18) 42. c8=Q {[%emt 0:00:16]} Qb1+ {[%emt 0:00:08]} 43. Ka4 {[%emt 0:00:42]} Qxb6 {[%emt 0:00:36]} 44. Rb4 {[%emt 0:00:33]} Qa7+ {[%emt 0:00:43]} 45. Kb3 {[%emt 0:00:06]} Qe7 {[%emt 0:00:45]} (45... Qaf2 $142 46. Qc4 Qgh2 47. Ka3 f5 48. Qb3 Qd6 49. Qb1 Kg6 50. Qb3 Kh7 51. Qb1 Kg6 52. Qb3 Kh7) 46. Rb6 {[%emt 0:00:39]} Qf3 {[%emt 0:00:47]} 47. Ka2 {[%emt 0:00:46]} Qa7+ {[%emt 0:00:24] Weighted Error Value: White=0.75/Black=0.05 (flawless)} 0-1

[Event "20th Delhi GM Open 2023"]
[Site "New Delhi"]
[Date "2023.03.30"]
[Round "10.5"]
[White "Kobalia, Mikhail"]
[Black "Deepan Chakkravarthy J."]
[Result "1-0"]
[ECO "C02"]
[WhiteElo "2577"]
[BlackElo "2432"]
[Annotator "TA"]
[PlyCount "35"]
[EventDate "2023.03.23"]
[EventType "swiss"]
[EventCountry "IND"]
[SourceTitle "playchess.com"]
[Source "ChessBase"]
[SourceQuality "1"]
[TimeControl "5400+30"]

{[%evp 10,35,29,19,19,18,33,38,129,131,136,134,135,135,131,135,202,193,243,239,331,333,414,391,396,390,581,569]} 1. e4 {[%emt 0:00:02]} e6 {[%emt 0:00:05]} 2. d4 {[%emt 0:03:15]} d5 {[%emt 0:00:10]} 3. e5 {[%emt 0:00:03]} c5 {[%emt 0:00:05]} 4. c3 {[%emt 0:00:02]} Nc6 {[%emt 0:00:11]} 5. Nf3 {[%emt 0:00:03]} f6 {[%emt 0:00:14]} 6. Bd3 {[%emt 0:01:09]} fxe5 {[%emt 0:00:31] C02: French: Advance Variation.} 7. Nxe5 {[%emt 0:02:55] [#] Strongly threatening Qh5+.} Nxe5 {[%emt 0:00:14]} 8. dxe5 {[%emt 0:00:03]} Qc7 {[%emt 0:00:35]} (8... Ne7 $14) 9. Qh5+ $16 {[%emt 0:03:01] [#]} Kd8 $146 {[%emt 0:01:00]} ({Predecessor:} 9... g6 10. Bxg6+ Kd8 11. O-O Bg7 12. Bg5+ Ne7 13. Bxe7+ Kxe7 14. Qg5+ Kd7 15. Bd3 c4 16. Qxg7+ Kc6 17. Qxh8 {1-0 Hofmann,P-Pongratz,P Oberpfalz-ch M2 2002}) 10. O-O {[%emt 0:04:07]} (10. Bxh7 $2 g6 11. Qg5+ (11. Qxg6 $2 {too greedy.} Qxh7 12. Bg5+ Kc7 $19) 11... Be7 12. Qxg6 Qxe5+ 13. Kd1 Nf6 $19) (10. Bb5 $6 Bd7 11. Bxd7 Kxd7 $11) 10... Ne7 {[%emt 0:00:24]} 11. c4 {[%emt 0:06:53]} (11. Bxh7 $2 g6 12. Qe2 (12. Qh4 $2 Qxe5 13. Bg5 Qg7 $19) 12... Rxh7 $19) 11... d4 {[%emt 0:04:18] Wards off Nc3} 12. Nd2 $36 {[%emt 0:00:20][%cal Bb1d2,Bd2e4,Be4d6][%mdl 2080] Hoping for Ne4. Keeping Black busy. White has more active pieces. The black rooks are badly placed.} (12. Bxh7 $2 {loses.} g6 13. Qh4 Qxe5 $19) 12... g6 {[%emt 0:02:12]} (12... Bd7 $16) 13. Qh4 $18 {[%emt 0:04:54] Ne4 is the strong threat.} Bg7 {[%emt 0:09:38]} (13... Qxe5 $142 14. Nf3 Qg7) 14. Ne4 {[%emt 0:01:06] Threatens to win with Nd6.} h6 {[%emt 0:00:29]} 15. Nd6 {[%emt 0:07:21]} g5 {[%emt 0:01:26] [#]} 16. Bxg5 {[%emt 0:03:58][%mdl 512]} hxg5 {[%emt 0:00:08]} 17. Qxg5 {[%emt 0:00:02]} Bh6 {[%emt 0:09:27]} (17... Rg8 {keeps fighting.} 18. Bh7 Bxe5 19. Qxe5 (19. Bxg8 $2 Qxd6 20. f4 Bh8 $17) 19... Kd7) 18. Qf6 {[%emt 0:03:17][%mdl 64] Deflection. Black got outplayed after the opening.   Weighted Error Value: White=0.04 (flawless) /Black=0.56} 1-0

[Event "20th Delhi GM Open 2023"]
[Site "New Delhi"]
[Date "2023.03.30"]
[Round "10.6"]
[White "Mchedlishvili, Mikheil"]
[Black "Harsh Suresh"]
[Result "1/2-1/2"]
[ECO "B08"]
[WhiteElo "2569"]
[BlackElo "2261"]
[Annotator "TA"]
[PlyCount "96"]
[EventDate "2023.03.23"]
[EventType "swiss"]
[EventCountry "IND"]
[SourceTitle "playchess.com"]
[Source "ChessBase"]
[SourceQuality "1"]
[TimeControl "5400+30"]

{[%evp 12,96,32,28,54,47,54,68,105,103,138,130,120,110,120,105,137,137,141,141,145,141,141,84,97,95,135,141,138,93,99,88,103,100,93,93,162,92,79,81,76,66,64,26,37,0,0,0,0,0,0,0,0,0,0,0,0,0,0,-34,-28,-28,-34,-56,-8,-8,-8,-14,-8,-41,-40,-95,-49,-49,-49,-57,-58,-56,-56,-41,-42,-46,0,-13,0,-50,0]} 1. e4 {[%emt 0:00:06]} g6 {[%emt 0:02:08]} 2. d4 {[%emt 0:00:37]} Bg7 {[%emt 0:00:12]} 3. Nf3 {[%emt 0:01:24]} d6 {[%emt 0:00:48]} 4. Be2 {[%emt 0:02:24]} Nf6 {[%emt 0:00:52]} 5. Nc3 {[%emt 0:01:30]} O-O {[%emt 0:02:44]} 6. O-O {[%emt 0:00:27]} a6 {[%emt 0:00:38]} 7. Re1 {[%emt 0:05:44]} b5 {[%emt 0:06:14] B08: Pirc Defence: Classical System.} 8. e5 {[%emt 0:05:50]} dxe5 {[%emt 0:08:48]} 9. dxe5 {[%emt 0:05:19]} Ng4 {[%emt 0:05:06] White is slightly better.} 10. Bf4 {[%emt 0:06:32] [#]} Bb7 $146 {[%emt 0:08:02]} ({Predecessor:} 10... Nc6 11. Bd3 Bb7 12. h3 Nh6 13. Be4 Qc8 14. a4 b4 15. Nd5 Rd8 16. Qe2 Nf5 {1-0 Bocharov,D (2611)-Popov,I (2596) RUS-ch blitz 2016 (17.6)}) 11. h3 {[%emt 0:04:34]} Qxd1 {[%emt 0:06:49]} 12. Raxd1 {[%emt 0:02:55][%cal Ba1d1,Bd1d5,Bd5c5,Bc5c4,Bc4e4][%mdl 32]} Nh6 {[%emt 0:00:35] Black is weak on the dark squares} 13. a4 {[%emt 0:02:16]} b4 {[%emt 0:05:02]} 14. Nd5 {[%emt 0:01:31]} Bxd5 {[%emt 0:00:32]} 15. Rxd5 {[%emt 0:00:06]} e6 {[%emt 0:00:16]} 16. Rc5 {[%emt 0:06:15]} Rc8 {[%emt 0:01:00]} 17. Rd1 {[%emt 0:06:39]} (17. g4 $142) 17... Bf8 {[%emt 0:01:38]} 18. Rc4 {[%emt 0:00:08] White has more active pieces.} c5 {[%emt 0:03:53]} 19. g4 {[%emt 0:01:14] Wards off Nf5} Ra7 {[%emt 0:04:36]} 20. Re4 {[%emt 0:08:09]} Kg7 {[%emt 0:10:11]} 21. Be3 {[%emt 0:00:19] This pair of bishops is nice.} Rac7 {[%emt 0:06:06]} 22. Nd2 {[%emt 0:04:33]} Ng8 {[%emt 0:01:01]} 23. Nc4 {[%emt 0:03:10]} Rd7 {[%emt 0:06:13]} (23... Ne7 $16 {was necessary.}) 24. Rxd7 {[%emt 0:12:29]} (24. Nd6 $18 Bxd6 25. exd6 (25. Rxd6 Rxd6 26. exd6 Nf6 $11)) 24... Nxd7 $16 {[%emt 0:00:04]} 25. Bf1 {[%emt 0:02:50]} Ne7 {[%emt 0:01:50]} 26. Bd2 {[%emt 0:01:15]} Nd5 {[%emt 0:00:56]} 27. a5 {[%emt 0:02:32]} Nb8 {[%emt 0:01:03]} 28. c3 {[%emt 0:00:58]} Nc6 {[%emt 0:01:25]} 29. Re1 {[%emt 0:01:28]} bxc3 {[%emt 0:02:44]} 30. bxc3 {[%emt 0:00:10]} Rb8 {[%emt 0:00:10] Inhibits Rb1.} 31. Bd3 {[%emt 0:03:15]} Be7 {[%emt 0:01:26]} 32. Ra1 {[%emt 0:03:01]} Bd8 {[%emt 0:00:34]} 33. f4 {[%emt 0:02:49]} h6 {[%emt 0:01:00]} 34. Kf2 {[%emt 0:02:18]} g5 {[%emt 0:00:42]} 35. f5 {[%emt 0:01:53]} Bc7 {[%emt 0:01:52]} 36. fxe6 {[%emt 0:00:07]} fxe6 {[%emt 0:00:10]} 37. Ra3 {[%emt 0:00:14]} Rb5 {[%emt 0:04:11]} ({But not} 37... Nxe5 38. Nxe5 Bxe5 39. Bxa6 $16) (37... Bxe5 $15 {is more appropriate.} 38. Nb6 (38. Nxe5 $2 Nxe5 39. Be2 Rb2 $19) 38... Bc7) 38. Ke1 $11 {[%emt 0:01:36]} Nxa5 {[%emt 0:04:50]} 39. Nd6 {[%emt 0:00:29]} Rb8 {[%emt 0:01:27]} 40. Bxa6 {[%emt 0:00:46]} (40. Be4 {is more complex.} Bxd6 41. exd6 Nc4 42. Rxa6 Kf6 43. Rc6) 40... Nc6 {[%emt 0:00:14]} 41. Bb5 {[%emt 0:00:27]} (41. Bc4 $15) 41... Bxd6 {[%emt 0:00:57]} (41... Nxe5 $17 42. Ne8+ Kg8) 42. Bxc6 $15 {[%emt 0:00:11]} Bxe5 {[%emt 0:00:06]} 43. Ra7+ {[%emt 0:00:33]} Kf6 {[%emt 0:01:02]} 44. Bxd5 $1 {[%emt 0:00:32]} exd5 {[%emt 0:00:09]} 45. Ra6+ {[%emt 0:00:06]} Kg7 {[%emt 0:00:09]} 46. Ra7+ {[%emt 0:00:31]} Kf6 {[%emt 0:00:41] White should prevent ...Bf4.} 47. Ra6+ {[%emt 0:00:05]} Kg7 {[%emt 0:00:10]} 48. Ra7+ $1 {[%emt 0:00:06]} Kf6 {[%emt 0:00:05] Blacks defense is rewarded with a draw.   Weighted Error Value: White=0.10 (very precise) /Black=0.11 (very precise)} ({Black should play} 48... Kf8 $15) 1/2-1/2

[Event "20th Delhi GM Open 2023"]
[Site "New Delhi"]
[Date "2023.03.30"]
[Round "10.7"]
[White "Murzin, Volodar"]
[Black "Anuj Shrivatri"]
[Result "1/2-1/2"]
[ECO "C65"]
[WhiteElo "2554"]
[BlackElo "2407"]
[Annotator "TA"]
[PlyCount "60"]
[EventDate "2023.03.23"]
[EventType "swiss"]
[EventCountry "IND"]
[SourceTitle "playchess.com"]
[Source "ChessBase"]
[SourceQuality "1"]
[TimeControl "5400+30"]

{[%evp 9,60,8,14,9,12,0,-2,0,0,0,0,0,5,-3,0,0,0,-25,-10,-23,-22,-19,-13,-17,-10,-20,-10,-8,0,0,0,0,7,-14,0,0,0,0,0,0,0,0,0,0,0,-23,0,0,0,0,0,0,0]} 1. e4 {[%emt 0:00:04]} e5 {[%emt 0:00:48]} 2. Nf3 {[%emt 0:00:06]} Nc6 {[%emt 0:00:08]} 3. Bb5 {[%emt 0:00:03]} Nf6 {[%emt 0:00:09]} 4. d3 {[%emt 0:02:59]} Bc5 {[%emt 0:00:12]} 5. Nbd2 {[%emt 0:02:51]} Nd4 {[%emt 0:00:34]} 6. Nxd4 {[%emt 0:02:00] C65: Ruy Lopez: Berlin Defence (3...Nf6), unusual lines and 4 0-0 Bc5.} Bxd4 {[%emt 0:00:41]} 7. Nf3 {[%emt 0:00:16]} Bb6 {[%emt 0:00:26]} 8. O-O {[%emt 0:07:27]} ({Don't play} 8. Nxe5 Qe7 9. Ng4 Qb4+ 10. c3 Qxb5 $17) 8... c6 {[%emt 0:02:47]} 9. Ba4 {[%emt 0:18:28]} d6 {[%emt 0:01:23][%cal Bd7d6,Bd6d5][%mdl 32]} 10. h3 {[%emt 0:00:28]} h6 {[%emt 0:01:11]} 11. c3 {[%emt 0:02:01]} O-O {[%emt 0:00:38]} 12. Bc2 {[%emt 0:01:40]} Re8 {[%emt 0:02:23]} 13. Be3 {[%emt 0:04:07]} Bc7 {[%emt 0:11:47] [#]} 14. Nd2 $146 {[%emt 0:07:02]} ({Predecessor:} 14. Nh2 d5 15. f3 d4 16. cxd4 exd4 17. Bf2 Nh5 18. Re1 Qd6 19. Nf1 Qg6 20. Bxd4 Bxh3 {0-1 Stuart,J (1739)-Jongerius,M (1547) Guernsey Holiday op 2002 (6)}) 14... d5 {[%emt 0:01:07] And now ...d4 would win.} 15. Qf3 {[%emt 0:01:18]} Be6 {[%emt 0:02:30]} 16. Rfe1 {[%emt 0:01:39]} Qe7 {[%emt 0:11:32]} 17. Nf1 {[%emt 0:01:13]} Rad8 {[%emt 0:08:45]} 18. Ng3 {[%emt 0:02:40]} dxe4 {[%emt 0:04:27]} 19. dxe4 {[%emt 0:00:22]} Bb6 {[%emt 0:00:22]} 20. Bb3 {[%emt 0:05:22]} Kh7 {[%emt 0:04:59]} 21. Rad1 {[%emt 0:07:25]} Bxb3 {[%emt 0:05:36]} 22. axb3 {[%emt 0:00:21]} g6 {[%emt 0:00:37]} (22... Rxd1 {simplifies} 23. Rxd1 g6 24. Bxb6 axb6 25. Qd3 b5) 23. Nf1 {[%emt 0:01:17]} Rxd1 {[%emt 0:00:58]} 24. Rxd1 {[%emt 0:00:03]} Rd8 {[%emt 0:00:11]} 25. Rxd8 {[%emt 0:00:38]} Qxd8 {[%emt 0:00:18]} 26. Nd2 {[%emt 0:00:08]} Kg7 {[%emt 0:08:53]} 27. Kh2 {[%emt 0:03:17]} Bxe3 {[%emt 0:06:09]} 28. Qxe3 {[%emt 0:00:03] The position is equal.} Qb6 {[%emt 0:00:22]} 29. Qxb6 {[%emt 0:00:25]} axb6 {[%emt 0:00:08]} 30. Kg3 {[%emt 0:00:07]} b5 {[%emt 0:00:10] Not much happened in this game.   Weighted Error Value: White=0.05 (flawless) /Black=0.04 (flawless)} 1/2-1/2

[Event "20th Delhi GM Open 2023"]
[Site "New Delhi"]
[Date "2023.03.30"]
[Round "10.8"]
[White "Viani Antonio Dcunha"]
[Black "Lalit Babu M R"]
[Result "1/2-1/2"]
[ECO "D38"]
[WhiteElo "2386"]
[BlackElo "2544"]
[Annotator "TA"]
[PlyCount "165"]
[EventDate "2023.03.23"]
[EventType "swiss"]
[EventCountry "IND"]
[SourceTitle "playchess.com"]
[Source "ChessBase"]
[SourceQuality "1"]
[TimeControl "5400+30"]

{[%evp 11,165,27,24,0,0,2,20,13,22,9,15,0,19,23,30,27,39,32,40,0,28,8,9,16,14,0,0,0,0,0,0,0,0,0,0,0,0,0,0,-27,-19,-27,-19,-33,-15,-16,-10,-10,-13,-25,-12,-38,-29,-73,-32,-33,-33,-28,-33,-144,0,-121,-24,-58,-28,-244,0,0,12,-190,-190,-190,-192,-198,-188,-188,-204,-200,-200,-197,-189,-191,-190,-184,-197,-173,-178,-190,-190,-191,-191,-191,-67,-139,-127,-268,-268,-254,-218,-239,-171,-164,0,0,0,0,0,0,0,0,0,0,0,0,0,0,0,0,0,0,0,0,0,-39,0,0,0,0,0,0,0,0,0,0,0,0,0,0,0,0,0,0,0,0,0,0,0,-21,0,0,0,0,0,-16,0,0]} 1. d4 {[%emt 0:00:31]} Nf6 {[%emt 0:00:07]} 2. c4 {[%emt 0:00:07]} e6 {[%emt 0:00:07]} 3. Nc3 {[%emt 0:00:06]} d5 {[%emt 0:00:21]} 4. Nf3 {[%emt 0:00:40]} Bb4 {[%emt 0:00:08]} 5. Qa4+ {[%emt 0:00:37]} Nc6 {[%emt 0:00:06]} 6. e3 {[%emt 0:00:55]} O-O {[%emt 0:00:09]} 7. Qc2 {[%emt 0:01:15] D38: Queen's Gambit Declined: Ragozin Defence (4 Nf3 Bb4).} Re8 {[%emt 0:02:57]} 8. Bd2 {[%emt 0:00:58]} h6 {[%emt 0:03:39]} 9. a3 {[%emt 0:03:50]} Bf8 {[%emt 0:12:29]} 10. Rd1 {[%emt 0:17:22]} a6 {[%emt 0:11:05]} 11. b4 {[%emt 0:14:24][%cal Bb2b4,Bb4b5][%mdl 32] [#]} b6 $146 {[%emt 0:33:04]} ({Predecessor:} 11... Bd7 12. h3 dxc4 13. Bxc4 b5 14. Bd3 a5 15. Nxb5 axb4 16. a4 e5 17. dxe5 Nxe5 18. Nxe5 Rxe5 {0-1 Pujari,R (2109)-Nguyen,V (2445) Chennai op 7th 2014 (1)}) 12. Bd3 {[%emt 0:08:28]} Bb7 {[%emt 0:00:17]} 13. O-O {[%emt 0:01:16]} a5 {[%emt 0:01:28]} 14. b5 {[%emt 0:07:45]} Nb8 {[%emt 0:00:25]} 15. a4 {[%emt 0:02:46]} c5 {[%emt 0:01:36]} 16. cxd5 {[%emt 0:05:08]} exd5 {[%emt 0:00:56]} 17. Ne5 {[%emt 0:04:39]} Nbd7 {[%emt 0:02:05]} 18. Nc6 {[%emt 0:04:05]} Qc7 {[%emt 0:12:23]} 19. e4 {[%emt 0:03:52]} dxe4 {[%emt 0:00:46]} 20. Nxe4 {[%emt 0:00:12]} Bxc6 {[%emt 0:00:41]} 21. bxc6 {[%emt 0:05:14]} Qxc6 {[%emt 0:00:32][%cal Rf6e4]} 22. Nxf6+ {[%emt 0:00:57]} Qxf6 {[%emt 0:00:04]} 23. Bb5 {[%emt 0:00:45]} Red8 {[%emt 0:00:42]} 24. Bc3 {[%emt 0:02:28]} Qg5 {[%emt 0:01:04]} 25. Rd3 {[%emt 0:03:47]} cxd4 {[%emt 0:04:57]} 26. Bxd4 {[%emt 0:00:11]} Nc5 27. Rg3 {[%emt 0:00:59]} Qh4 {[%emt 0:02:09]} (27... Qd5 $5 {[%cal Rd5d4]} 28. Rg4 Rac8 $11) 28. Be3 {[%emt 0:03:44] This pair of bishops is nice.} Qe4 {[%emt 0:06:21]} 29. Qa2 {[%emt 0:02:03]} Bd6 {[%emt 0:02:14][%cal Bf8d6,Bd6e5,Be5f6][%mdl 32]} (29... Rd6 {simplifies} 30. Bxc5 bxc5 31. Bc4 Ra7) 30. Rf3 {[%emt 0:01:01]} Ra7 $36 {[%emt 0:01:18][%mdl 2048] White is under pressure.} 31. Rb1 Be5 {[%emt 0:00:59]} 32. Bc4 {[%emt 0:01:39]} Bf6 {[%emt 0:00:30][%cal Oc5a4]} 33. Rf4 {[%emt 0:03:47]} Qc6 {[%emt 0:00:08]} 34. h4 Rad7 {[%emt 0:00:19]} 35. Qe2 {[%emt 0:01:07] Wards off Rd1+} (35. Bb5 $15 Rd1+ 36. Kh2) 35... Rd6 {[%emt 0:01:06]} (35... Nxa4 $17 {White must now prevent ...Nc3.} 36. Qc2 Kh8) 36. Qg4 {[%emt 0:00:30]} (36. Qh5 $11 {remains equal.}) 36... Qc7 {[%emt 0:00:21]} (36... Qxa4 $2 37. Bxf7+ Kxf7 38. Rxa4 $18) (36... Nxa4 $17 37. Bxf7+ Kxf7 38. Rxa4 Kg8) 37. Rf5 {[%emt 0:00:28]} Qd7 {[%emt 0:00:18]} 38. Qg6 $2 {[%emt 0:00:34]} (38. g3 $11) 38... Kf8 $2 {[%emt 0:00:46]} (38... Qxa4 39. Qxf7+ Kh8 40. Bxh6 $18) (38... Nxa4 39. Bxh6 Qc7 40. Qg4 $11) (38... Ne6 $1 $19 39. Qg4 Nd4) 39. Qh7 $11 {[%emt 0:00:16]} Rd1+ {[%emt 0:00:06]} (39... Nxa4 $2 40. Re1 $18) 40. Rxd1 $2 {[%emt 0:00:16]} (40. Kh2 $1 $11 {and White stays safe.} Ne6 41. Bxe6 (41. Rxb6 $2 Qc7+ 42. f4 Qxc4 $19) (41. Rxd1 Qxd1 42. g3 Ke7 $14) 41... Qxe6 42. Bxb6 (42. Rxb6 Be5+ 43. g3 Qd5 $11)) 40... Qxd1+ $19 {[%emt 0:00:02]} 41. Kh2 {[%emt 0:00:07]} Qg4 $1 {[%emt 0:00:12]} 42. Rxc5 {[%emt 0:01:39][%cal Og2g3]} Qxh4+ {[%emt 0:01:35]} (42... bxc5 43. Bxc5+) 43. Kg1 {[%emt 0:00:03]} Rd1+ {[%emt 0:00:09]} (43... bxc5 {leads to mate.} 44. Bxc5+) 44. Bf1 {[%emt 0:00:05]} bxc5 {[%emt 0:00:22]} 45. Bxc5+ {[%emt 0:00:45]} Ke8 {[%emt 0:00:03]} 46. Qg8+ {[%emt 0:01:05]} Kd7 {[%emt 0:00:04]} 47. Qxf7+ {[%emt 0:00:12]} Kc6 $1 {[%emt 0:00:03]} 48. Be3 {[%emt 0:00:43] [#]} Qe4 {[%emt 0:00:26] Dodges Qe8+} 49. Qb3 {[%emt 0:00:40]} Rb1 {[%emt 0:00:13]} 50. Qg8 {[%emt 0:00:32]} Kd7 {[%emt 0:01:08]} (50... Qxa4 $2 51. Qe8+ Kd6 52. Qxa4 $18) 51. Qf7+ {[%emt 0:00:33]} Kd6 {[%emt 0:02:03]} (51... Be7 $19 {Hoping for ...Qd3.} 52. Qh5 Ke6) 52. Qf8+ {[%emt 0:00:15] [#]} ({Better is} 52. g3 $15) 52... Ke6 $1 $17 {[%emt 0:00:24]} 53. Qg8+ {[%emt 0:00:32]} (53. g3 $17) 53... Kf5 $19 {[%emt 0:00:29]} 54. Qc8+ {[%emt 0:00:47]} Kg6 {[%emt 0:00:08]} 55. Qa6 {[%emt 0:00:08]} Ra1 {[%emt 0:00:38]} (55... Qxa4 $2 56. Qd3+ Kf7 57. Qxb1 $18) 56. g3 {[%emt 0:00:29]} Qxa4 $2 {[%emt 0:00:43]} (56... Kh7 $19 57. Kh2 Qd5) 57. Qd3+ $11 {[%emt 0:00:16]} Kf7 {[%emt 0:00:48]} 58. Qd5+ {[%emt 0:00:06]} Kg6 {[%emt 0:00:27] ...Rd1 would be deadly.} 59. Qd3+ {[%emt 0:00:06]} Kf7 {[%emt 0:00:48] ...Rd1 is the strong threat.} 60. Qd5+ {[%emt 0:00:07]} Ke8 {[%emt 0:00:28]} 61. Qe6+ {[%emt 0:00:47]} Be7 {[%emt 0:00:04]} 62. Qg8+ {[%emt 0:00:30]} ({Don't go for} 62. Bc5 $2 Rxf1+ 63. Kh2 (63. Kg2 $2 Re1 $19) 63... Rxf2+ 64. Bxf2 Qd7 $19) 62... Kd7 {[%emt 0:00:09] Threatens to win with ...Qb5.} 63. Qd5+ {[%emt 0:00:22]} Ke8 {[%emt 0:00:27]} 64. Qg8+ {[%emt 0:00:13]} Kd7 {[%emt 0:00:22] And now ...Qb5 would win.} 65. Qd5+ {[%emt 0:00:06]} Bd6 {[%emt 0:00:22]} 66. Qf7+ {[%emt 0:00:40]} Kc6 {[%emt 0:00:30][%cal Oa1f1] aiming for ...Rxf1+!} 67. Qxg7 {[%emt 0:01:13]} Rxf1+ {[%emt 0:01:10]} 68. Kxf1 {[%emt 0:00:02][%mdl 4096] Endgame KQB-KQB. The position is equal.} Qd1+ {[%emt 0:00:10]} 69. Kg2 {[%emt 0:00:05]} Qd5+ {[%emt 0:00:04]} 70. Kh2 {[%emt 0:00:42]} a4 {[%emt 0:00:44]} 71. Qa7 {[%emt 0:00:30] White threatens Qa8+ and mate. The board is on fire.} Kb5 {[%emt 0:00:18]} 72. Qd7+ {[%emt 0:00:14]} Kb4 {[%emt 0:00:58][%cal Od6g3]} 73. Bf4 {[%emt 0:01:43]} Qh5+ {[%emt 0:00:04]} 74. Kg2 {[%emt 0:00:10]} Bxf4 {[%emt 0:00:06]} 75. Qd4+ {[%emt 0:00:11]} Kb5 {[%emt 0:00:25]} 76. Qd7+ {[%emt 0:00:56]} Kc5 {[%emt 0:01:21] ( -> ...Qd5+)} 77. Qa7+ {[%emt 0:00:10]} Kb5 {[%emt 0:00:19]} 78. Qd7+ $1 {[%emt 0:00:26]} Kb6 {[%emt 0:00:06][%cal Of4g3]} 79. Qe6+ {[%emt 0:00:22]} Ka5 {[%emt 0:00:35]} (79... Kc5 $5 {[%cal Rh5d5]} 80. Qc8+ Kd4 81. gxf4 a3 82. Qh8+ Kc4 83. Qc8+ Kd4 84. Qh8+ Kc4 85. Qc8+ Qc5 86. Qa6+ Kc3 $17) 80. gxf4 {[%emt 0:00:45]} a3 {[%emt 0:00:53]} 81. Qe1+ {[%emt 0:00:23]} Kb5 {[%emt 0:00:35]} 82. Qb1+ {[%emt 0:00:18]} Ka5 {[%emt 0:00:25] Strongly threatening ...Qg4+.} 83. Qe1+ {[%emt 0:00:17] And White is the lucky defender.   Weighted Error Value: White=0.29 (precise) /Black=0.28 (precise)} 1/2-1/2